fUSD/lending_fUSD_20240330
["ID","MTS","AMOUNT","RATE_DAILY","PERIOD"]
[321038629,1711806677807,-3251.47,0.00041917,4]
[321038630,1711806677816,-500.0,0.00041917,4]
[321038631,1711806677826,-500.0,0.00041917,4]
[321038632,1711806677837,-500.0,0.00041917,4]
[321038633,1711806677848,-785.45,0.00041917,4]
[321038634,1711806677859,-500.0,0.00041917,4]
[321038635,1711806677868,-1393.46,0.00041917,4]
[321038636,1711806677878,-500.0,0.00041917,4]
[321038637,1711806677889,-533.37635714,0.00041917,4]
[321038638,1711806677898,-500.0,0.00041917,4]
[321038639,1711806677908,-1040.1,0.00041917,4]
[321038640,1711806677919,-3242.39,0.00041917,4]
[321038641,1711806677929,-500.0,0.00041917,4]
[321038642,1711806677940,-540.91,0.00041917,4]
[321038643,1711806677949,-500.0,0.00041917,4]
[321038644,1711806677959,-500.0,0.00041917,4]
[321038645,1711806677968,-569.83560756,0.00041917,4]
[321038646,1711806677978,-859.59,0.00041917,4]
[321038647,1711806677989,-500.0,0.00041917,4]
[321038648,1711806677999,-514.46254449,0.00041917,4]
[321038649,1711806678009,-881.63,0.00041917,4]
[321038650,1711806678019,-500.0,0.00041917,4]
[321038651,1711806678029,-5270.27,0.00041917,4]
[321038652,1711806678039,-296.92790564,0.00041917,4]
[321038653,1711806678049,-700.63,0.00041917,4]
[321038654,1711806678059,-188.11647814,0.00041917,4]
[321038655,1711806678070,-500.0,0.00041917,4]
[321038656,1711806678080,-635.77,0.00041917,4]
[321038657,1711806678090,-533.49,0.00041917,4]
[321038658,1711806678100,-500.0,0.00041917,4]
[321038659,1711806678111,-500.0,0.00041917,4]
[321038660,1711806678121,-753.65,0.00041917,4]
[321038661,1711806678131,-500.0,0.00041917,4]
[321038662,1711806678141,-14020.14,0.00041917,4]
[321038663,1711806678150,-500.0,0.00041917,4]
[321038664,1711806678161,-720.17,0.00041917,4]
[321038665,1711806678171,-500.0,0.00041917,4]
[321038666,1711806678182,-500.0,0.00041917,4]
[321038667,1711806678191,-1051.28,0.00041917,4]
[321038668,1711806678207,-2466.19,0.00041917,4]
[321038669,1711806678217,-618.53,0.00041917,4]
[321038670,1711806678226,-500.0,0.00041917,4]
[321038671,1711806678235,-1029.06,0.00041917,4]
[321038672,1711806678245,-500.0,0.00041917,4]
[321038673,1711806678255,-3108.17,0.00041917,4]
[321038674,1711806678265,-520.41115421,0.00041917,4]
[321038675,1711806678274,-500.0,0.00041917,4]
[321038676,1711806678284,-500.0,0.00041917,4]
[321038677,1711806678293,-500.0,0.00041917,4]
[321038678,1711806678302,-1599.55,0.00041917,4]
[321038679,1711806678312,-1250.02,0.00041917,4]
[321038680,1711806678322,-1893.67,0.00041917,4]
[321038681,1711806678332,-500.0,0.00041917,4]
[321038682,1711806678341,-500.0,0.00041917,4]
[321038683,1711806678350,-2304.78,0.00041917,4]
[321038684,1711806678359,-3979.67,0.00041917,4]
[321038685,1711806678369,-500.0,0.00041917,4]
[321038686,1711806678378,-2785.73,0.00041917,4]
[321038687,1711806678388,-500.0,0.00041917,4]
[321038688,1711806678399,-1839.44,0.00041917,4]
[321038689,1711806678409,-1623.94,0.00041917,4]
[321038690,1711806678419,-505.08517126,0.00041917,4]
[321038691,1711806678429,-2379.38,0.00041917,4]
[321038692,1711806678439,-6635.24,0.00041917,4]
[321038693,1711806678449,-589.81,0.00041917,4]
[321038694,1711806678459,-509.12246252,0.00041917,4]
[321038695,1711806678469,-500.0,0.00041917,4]
[321038696,1711806678480,-500.0,0.00041917,4]
[321038697,1711806678489,-932.06,0.00041917,4]
[321038698,1711806678499,-500.0,0.00041917,4]
[321038699,1711806678509,-500.0,0.00041917,4]
[321038700,1711806678518,-3024.71,0.00041917,4]
[321038701,1711806678528,-948.13,0.00041917,4]
[321038702,1711806678537,-1452.57,0.00041917,4]
[321038703,1711806678547,-500.0,0.00041917,4]
[321038704,1711806678557,-3617.76,0.00041917,4]
[321038705,1711806678567,-500.0,0.00041917,4]
[321038706,1711806678577,-500.0,0.00041917,4]
[321038707,1711806678587,-500.0,0.00041917,4]
[321038708,1711806678596,-500.0,0.00041917,4]
[321038709,1711806678606,-500.0,0.00041917,4]
[321038710,1711806678617,-500.0,0.00041917,4]
[321038711,1711806678626,-500.0,0.00041917,4]
[321038712,1711806678635,-3009.16,0.00041917,4]
[321038713,1711806678644,-500.0,0.00041917,4]
[321038714,1711806678653,-514.07756837,0.00041917,4]
[321038715,1711806678665,-500.0,0.00041917,4]
[321038716,1711806678675,-673.66,0.00041917,4]
[321038717,1711806678685,-500.0,0.00041917,4]
[321038718,1711806678695,-500.0,0.00041917,4]
[321038719,1711806678704,-500.0,0.00041917,4]
[321038720,1711806678714,-12713.65,0.00041917,4]
[321038721,1711806678724,-500.0,0.00041917,4]
[321038722,1711806678733,-500.0,0.00041917,4]
[321038723,1711806678743,-1826.58,0.00041917,4]
[321038724,1711806678753,-500.0,0.00041917,4]
[321038725,1711806678763,-3710.24,0.00041917,4]
[321038726,1711806678773,-4745.73,0.00041917,4]
[321038727,1711806678783,-1492.88,0.00041917,4]
[321038728,1711806678793,-500.0,0.00041917,4]
[321038729,1711806678802,-1890.54,0.00041917,4]
[321038730,1711806678812,-500.0,0.00041917,4]
[321038731,1711806678822,-500.0,0.00041917,4]
[321038732,1711806678831,-840.5,0.00041917,4]
[321038733,1711806678840,-500.0,0.00041917,4]
[321038734,1711806678850,-500.0,0.00041917,4]
[321038735,1711806678859,-867.39,0.00041917,4]
[321038736,1711806678868,-500.0,0.00041917,4]
[321038737,1711806678877,-500.0,0.00041917,4]
[321038738,1711806678886,-500.0,0.00041917,4]
[321038739,1711806678896,-500.0,0.00041917,4]
[321038740,1711806678905,-1835.43,0.00041917,4]
[321038741,1711806678914,-500.0,0.00041917,4]
[321038742,1711806678924,-9496.18,0.00041917,4]
[321038743,1711806678937,-538.59,0.00041917,4]
[321038744,1711806678948,-512.66261702,0.00041917,4]
[321038745,1711806678958,-500.0,0.00041917,4]
[321038746,1711806678968,-500.0,0.00041917,4]
[321038747,1711806678978,-500.0,0.00041917,4]
[321038748,1711806678988,-500.0,0.00041917,4]
[321038749,1711806678998,-473.93035026,0.00041917,4]
[321038750,1711806679008,-1111.88,0.00041917,4]
[321038751,1711806679018,-500.0,0.00041917,4]
[321038752,1711806679027,-533.41100936,0.00041917,4]
[321038753,1711806679038,-4104.49,0.00041917,4]
[321038754,1711806679048,-500.0,0.00041917,4]
[321038755,1711806679057,-2866.68,0.00041917,4]
[321038756,1711806679066,-500.0,0.00041917,4]
[321038757,1711806679076,-912.61,0.00041917,4]
[321038758,1711806679085,-500.0,0.00041917,4]
[321038759,1711806679095,-500.0,0.00041917,4]
[321038760,1711806679105,-500.0,0.00041917,4]
[321038761,1711806679115,-500.0,0.00041917,4]
[321038762,1711806679126,-500.0,0.00041917,4]
[321038763,1711806679140,-4929.91,0.00041917,4]
[321038764,1711806679150,-500.0,0.00041917,4]
[321038765,1711806679160,-359.06538143,0.00041917,4]
[321038766,1711806679170,-475.4639876,0.00041917,4]
[321038767,1711806679180,-1287.32,0.00041917,4]
[321038768,1711806679190,-500.0,0.00041917,4]
[321038769,1711806679201,-1382.95,0.00041917,4]
[321038770,1711806679214,-500.0,0.00041917,4]
[321038771,1711806679225,-2816.81,0.00041917,4]
[321038772,1711806679236,-500.0,0.00041917,4]
[321038773,1711806679247,-500.0,0.00041917,4]
[321038774,1711806679257,-500.0,0.00041917,4]
[321038775,1711806679267,-946.73,0.00041917,4]
[321038776,1711806679278,-500.0,0.00041917,4]
[321038777,1711806679288,-500.0,0.00041917,4]
[321038778,1711806679297,-500.0,0.00041917,4]
[321038779,1711806679308,-4372.31,0.00041917,4]
[321038780,1711806679318,-500.0,0.00041917,4]
[321038781,1711806679328,-500.0,0.00041917,4]
[321038782,1711806679338,-500.0,0.00041917,4]
[321038783,1711806679347,-880.41,0.00041917,4]
[321038784,1711806679357,-500.0,0.00041917,4]
[321038785,1711806679368,-500.0,0.00041917,4]
[321038786,1711806679379,-500.0,0.00041917,2]
[321038787,1711806679388,-500.0,0.00041917,4]
[321038788,1711806679397,-500.0,0.00041917,4]
[321038789,1711806679586,-228.20459698,0.00041917,4]
[321038790,1711806679595,-4172.73,0.00041917,4]
[321038791,1711806679605,-542.14684399,0.00041917,4]
[321038792,1711806679615,-500.0,0.00041917,4]
[321038793,1711806679624,-2214.55,0.00041917,4]
[321038794,1711806679634,-510.18,0.00041917,4]
[321038795,1711806679643,-358.07163525,0.00041917,4]
[321038796,1711806679653,-500.0,0.00041917,4]
[321038797,1711806679662,-540.80318288,0.00041917,4]
[321038798,1711806679671,-500.0,0.00041917,2]
[321038799,1711806679680,-589.22,0.00041917,4]
[321038800,1711806679689,-673.0,0.00041917,4]
[321038801,1711806679699,-500.0,0.00041917,4]
[321038802,1711806679708,-500.0,0.00041917,4]
[321038803,1711806679718,-500.0,0.00041917,4]
[321038804,1711806679728,-1107.76,0.00041917,4]
[321038805,1711806679738,-500.0,0.00041917,4]
[321038806,1711806679747,-500.0,0.00041917,4]
[321038807,1711806679755,-157.36682278,0.00041917,4]
[321038808,1711806679765,-500.0,0.00041917,4]
[321038809,1711806679775,-666.67,0.00041917,4]
[321038810,1711806679784,-505.36328189,0.00041917,4]
[321038811,1711806679794,-500.0,0.00041917,4]
[321038812,1711806679803,-500.0,0.00041917,4]
[321038813,1711806679812,-500.0,0.00041917,4]
[321038814,1711806679822,-529.48992939,0.00041917,4]
[321038815,1711806679832,-627.77,0.00041917,4]
[321038816,1711806679842,-500.0,0.00041917,4]
[321038817,1711806679851,-500.0,0.00041917,4]
[321038818,1711806679860,-4161.47,0.00041917,4]
[321038819,1711806679871,-500.0,0.00041917,4]
[321038820,1711806679881,-500.0,0.00041917,4]
[321038821,1711806679891,-500.0,0.00041917,4]
[321038822,1711806679900,-500.0,0.00041917,4]
[321038823,1711806679910,-500.0,0.00041917,4]
[321038824,1711806679919,-500.0,0.00041917,4]
[321038825,1711806679929,-500.0,0.00041917,4]
[321038826,1711806679938,-500.0,0.00041917,4]
[321038827,1711806679948,-500.0,0.00041917,4]
[321038828,1711806679958,-2305.86,0.00041917,4]
[321038829,1711806679976,-1354.39,0.00041917,4]
[321038830,1711806679988,-604.01,0.00041917,4]
[321038831,1711806679998,-500.0,0.00041917,4]
[321038832,1711806680008,-500.0,0.00041917,4]
[321038833,1711806680018,-4316.49,0.00041917,4]
[321038834,1711806680029,-500.0,0.00041917,4]
[321038835,1711806680039,-500.0,0.00041917,4]
[321038836,1711806680050,-373.27371673,0.00041917,4]
[321038837,1711806680060,-813.38,0.00041917,4]
[321038838,1711806680070,-500.0,0.00041917,4]
[321038839,1711806680081,-3057.16,0.00041917,4]
[321038840,1711806680091,-207.46314996,0.00041918,2]
[321038841,1711806680102,-295.88741161,0.0004192,2]
[321038842,1711806680112,-197.2582744,0.0004192,2]
[321038843,1711806680123,-27543.02232814,0.0004192,2]
[321038844,1711806680134,-207.46314996,0.00041922,2]
[321038845,1711806680144,-197.2582744,0.00041922,2]
[321038846,1711806680155,-9181.00744272,0.00041922,2]
[321038847,1711806680165,-207.46314996,0.00041923,2]
[321038848,1711806680175,-27543.02232814,0.00041923,2]
[321038849,1711806680185,-9181.00744272,0.00041924,2]
[321038850,1711806680196,-4675.23733923,0.00041926,2]
[321038851,1711806680210,-946.59829841,0.00041926,2]
[321038852,1711806680221,-18700.94935693,0.00041927,2]
[321038853,1711806680230,-159.55437693,0.00041929,2]
[321038854,1711806680240,-4675.23733923,0.0004193,2]
[321038855,1711806680251,-4675.23733923,0.0004193,2]
[321038856,1711806680261,-4675.23733923,0.0004193,2]
[321038857,1711806680271,-295.88741161,0.00041931,2]
[321038858,1711806680281,-207.46314996,0.00041932,2]
[321038859,1711806680292,-27543.02232814,0.00041932,2]
[321038860,1711806680303,-197.25827441,0.00041934,2]
[321038861,1711806680313,-29473.87258694,0.00041934,2]
[321038862,1711806680323,-4675.23733923,0.00041935,2]
[321038863,1711806680333,-4675.23733923,0.00041936,2]
[321038864,1711806680342,-197.25827441,0.00041937,2]
[321038865,1711806680352,-197.25827441,0.00041937,2]
[321038866,1711806680362,-295.88741161,0.00041938,2]
[321038867,1711806680373,-197.2582744,0.00041938,2]
[321038868,1711806680383,-4675.23733924,0.0004194,2]
[321038869,1711806680394,-18700.94935693,0.00041943,2]
[321038870,1711806680404,-4675.23733923,0.00041944,2]
[321038871,1711806680414,-27543.02232813,0.00041945,2]
[321038872,1711806680424,-18700.94935693,0.00041945,2]
[321038873,1711806680434,-197.25827441,0.00041945,2]
[321038874,1711806680444,-27543.02232814,0.00041946,2]
[321038875,1711806680453,-207.46314996,0.00041946,2]
[321038876,1711806680463,-159.55437693,0.00041946,2]
[321038877,1711806680473,-946.59829841,0.00041947,2]
[321038878,1711806680483,-4675.23733924,0.00041949,2]
[321038879,1711806680492,-159.55437693,0.00041949,2]
[321038880,1711806680502,-295.88741161,0.0004195,2]
[321038881,1711806680512,-946.59829841,0.00041951,2]
[321038882,1711806680521,-159.55437693,0.00041952,2]
[321038883,1711806680531,-159.55437693,0.00041952,2]
[321038884,1711806680540,-27543.02232814,0.00041953,2]
[321038885,1711806680550,-946.59829841,0.00041953,2]
[321038886,1711806680560,-197.25827441,0.00041953,2]
[321038887,1711806680570,-946.59829841,0.00041953,2]
[321038888,1711806680579,-158.0,0.00041954,15]
[321038889,1711806680589,-9181.00744272,0.00041954,2]
[321038890,1711806680598,-27543.02232814,0.00041955,2]
[321038891,1711806680608,-4675.23733923,0.00041956,2]
[321038892,1711806680617,-9181.00744272,0.00041956,2]
[321038893,1711806680627,-27543.02232813,0.00041957,2]
[321038894,1711806680636,-207.46314996,0.00041958,2]
[321038895,1711806680645,-27543.02232813,0.00041958,2]
[321038896,1711806680655,-197.25827441,0.00041959,2]
[321038897,1711806680664,-4675.23733924,0.00041959,2]
[321038898,1711806680679,-27543.02232813,0.00041959,2]
[321038899,1711806680688,-27543.02232813,0.0004196,2]
[321038900,1711806680698,-295.88741161,0.00041961,2]
[321038901,1711806680708,-21861.57416455,0.00041962,2]
[321038902,1711806686206,150000.0,0.00025,2]
[321038903,1711806686231,17000.0,0.00025,2]
[321038910,1711806857742,499.999999,0.0002,2]
[321038911,1711807120196,-340.10664429,0.00030821,25]
[321038912,1711807120219,-223.65,0.00039071,120]
[321038913,1711807120251,-1035.69,0.0003987,10]
[321038914,1711807120280,-1617.06,0.0003987,10]
[321038915,1711807120301,-1347.55,0.0003987,10]
[321038916,1711807120323,-207.2218864,0.0004,15]
[321038917,1711807129030,1122.96,0.0003987,10]
[321038918,1711807196975,-162.97,0.00038826,15]
[321038919,1711807196998,-1602.52,0.0003987,10]
[321038920,1711807197017,-207.2218864,0.0004,15]
[321038921,1711807204871,1335.43,0.0003987,10]
[321038922,1711807208448,340.10664429,0.00029903,15]
[321038923,1711807292006,-10200.0,0.00028,5]
[321038948,1711807831802,-155.0,0.00027996,2]
[321038950,1711807831812,-2981.75569764,0.00027999,2]
[321038951,1711807831822,-342.30613296,0.00028,2]
[321038952,1711807831831,-393.57902775,0.00028,2]
[321038953,1711807831845,-400.0,0.00028,2]
[321038970,1711807837715,-155.0,0.00027995,2]
[321038972,1711807837726,-238.28760922,0.00028,2]
[321038974,1711807837737,-26.35345358,0.00028,2]
[321038978,1711807837773,-128.64654642,0.00028,2]
[321038979,1711807837783,-19171.68920407,0.00028,2]
[321038980,1711807837792,-163.69782161,0.0002965,2]
[321038981,1711807837802,-13032.14642585,0.0002975,2]
[321038982,1711807837812,-340.10664429,0.00029903,15]
[321038983,1711807837822,-250.0,0.00033,3]
[321038984,1711807837831,-300.0,0.00035,3]
[321038985,1711807837841,-463.61,0.00036141,2]
[321038986,1711807837850,-4207.37271083,0.00037,4]
[321038987,1711807837859,-350.0,0.00037,3]
[321038988,1711807837868,-151.87,0.00037901,2]
[321038989,1711807837878,-600.0,0.00038,39]
[321038990,1711807837887,-150.0,0.00038013,2]
[321038991,1711807837897,-162.97,0.00038057,15]
[321038992,1711807837907,-691.22,0.00038088,2]
[321038993,1711807837917,-223.65,0.00038121,120]
[321038994,1711807837926,-800.0,0.00038153,2]
[321038995,1711807837936,-233.04,0.00038209,2]
[321038996,1711807837945,-1000.0,0.00038356,15]
[321038997,1711807837955,-10445.0,0.00038384,2]
[321038998,1711807837965,-463.61,0.00038405,2]
[321038999,1711807837974,-257.87,0.00038606,2]
[321039000,1711807837984,-215.94,0.0003867,2]
[321039001,1711807837994,-257.87,0.00038712,2]
[321039002,1711807838003,-257.87,0.00038818,2]
[321039003,1711807838013,-504521.91687601,0.0003888,2]
[321039004,1711807838031,-166383.53396962,0.0003888,2]
[321039005,1711807838042,-908.6466,0.0003888,2]
[321039006,1711807838074,-712.61733787,0.0003888,2]
[321039007,1711807838100,-500.0,0.0003888,2]
[321039008,1711807838120,-643.26409225,0.0003888,2]
[321039009,1711807838132,-940.07537346,0.0003888,2]
[321039055,1711807840074,-417.80951895,0.0003888,2]
[321039056,1711807840180,-1419.43297224,0.0003888,2]
[321039061,1711807842811,-1410.94652757,0.0003888,2]
[321039062,1711807842824,-5985.77140093,0.0003888,2]
[321039063,1711807842847,-747.61208962,0.0003888,2]
[321039064,1711807842877,-15651.62543099,0.0003888,2]
[321039065,1711807842901,-388137.92196856,0.0003888,2]
[321039066,1711807843150,-314.42644816,0.0003888,2]
[321039067,1711807843207,-3815.02618816,0.0003888,2]
[321039193,1711807845818,-1257.25445626,0.0003888,2]
[321039196,1711807845830,-66105.4481412,0.0003888,2]
[321039203,1711807845954,-404.04653892,0.0003888,2]
[321039204,1711807845996,-649.63058549,0.0003888,2]
[321039205,1711807846008,-2897.20617182,0.0003888,2]
[321039206,1711807846057,-1457.75095232,0.0003888,2]
[321039207,1711807846068,-5514.00814743,0.0003888,2]
[321039208,1711807846168,-1300.4999905,0.0003888,2]
[321039209,1711807846180,-13512.18683862,0.0003888,2]
[321039210,1711807846191,-291.97,0.0003888,2]
[321039211,1711807846202,-392.98284367,0.0003888,2]
[321039212,1711808544948,-155.0,0.00027897,2]
[321039213,1711808544968,-2889.58883327,0.00027898,2]
[321039214,1711808544989,-150.0,0.00027898,2]
[321039215,1711808545017,-150.0,0.00027898,2]
[321039216,1711808545048,-6655.41116673,0.00027899,2]
[321039249,1711809032079,-155.0,0.00027798,2]
[321039250,1711809032090,-159.19725641,0.00027799,2]
[321039251,1711809032100,-178.90015168,0.00027899,2]
[321039252,1711809032110,-155.0,0.00027899,2]
[321039253,1711809032121,-322.46375696,0.00027899,2]
[321039254,1711809032131,-250.0,0.00033,3]
[321039255,1711809032141,-300.0,0.00035,3]
[321039256,1711809032152,-476.65,0.00035806,2]
[321039257,1711809032161,-16.3002928,0.00037,3]
[321039258,1711809032173,-333.6997072,0.00037,3]
[321039259,1711809032183,-151.17,0.00037425,2]
[321039260,1711809032212,-200.0,0.00037595,2]
[321039261,1711809032244,-945.51,0.00037595,2]
[321039262,1711809032255,-293.53,0.00037595,2]
[321039263,1711809032265,-408.28,0.00037614,2]
[321039264,1711809032276,-250.0,0.00037616,2]
[321039265,1711809032285,-150.0,0.00037619,3]
[321039266,1711809032295,-314.38,0.0003762,2]
[321039267,1711809032305,-500.0,0.0003762,2]
[321039268,1711809032315,-1000.0,0.00037628,2]
[321039269,1711809032325,-500.0,0.00037643,2]
[321039270,1711809032335,-250.0,0.00037644,2]
[321039271,1711809032344,-711.28,0.00037703,2]
[321039272,1711809032355,-23890.0,0.00037723,2]
[321039273,1711809032366,-2751.0,0.00037729,2]
[321039274,1711809032375,-576.01,0.00037753,2]
[321039275,1711809032386,-200.0,0.00037759,2]
[321039276,1711809032396,-514.18,0.00037775,2]
[321039277,1711809032406,-170.59,0.00037777,2]
[321039278,1711809032416,-1000.0,0.00037882,2]
[321039279,1711809032426,-1229.28872733,0.00037883,4]
[321039280,1711809032437,-4229.18424172,0.00037884,4]
[321039281,1711809032448,-227.42,0.00037947,2]
[321039282,1711809032458,-162.97,0.00038027,15]
[321039283,1711809032469,-176.81,0.00038039,2]
[321039284,1711809032481,-227.42,0.00038051,2]
[321039285,1711809032491,-476.65,0.00038069,2]
[321039286,1711809032502,-200.0,0.000381,2]
[321039287,1711809032512,-614.26,0.00038118,2]
[321039288,1711809032522,-1316.87298292,0.00038133,2]
[321039289,1711809032532,-227.42,0.00038155,2]
[321039290,1711809032544,-227.42,0.00038259,2]
[321039291,1711809032555,-317.14573125,0.00038356,2]
[321039292,1711809032566,-1000.0,0.00038356,15]
[321039293,1711809032577,-227.42,0.00038363,2]
[321039294,1711809032587,-227.42,0.00038467,2]
[321039295,1711809032599,-1316.87298292,0.00038511,2]
[321039296,1711809032609,-227.42,0.00038571,2]
[321039297,1711809032620,-227.42,0.00038675,2]
[321039298,1711809032630,-445.96,0.00038686,2]
[321039299,1711809032641,-445.96,0.00038696,2]
[321039300,1711809032652,-445.96,0.00038706,2]
[321039301,1711809032664,-445.96,0.00038716,2]
[321039302,1711809032675,-445.96,0.00038727,2]
[321039303,1711809032686,-445.96,0.00038737,2]
[321039304,1711809032697,-445.96,0.00038747,2]
[321039305,1711809032707,-445.96,0.00038757,2]
[321039306,1711809032717,-445.96,0.00038767,2]
[321039307,1711809032729,-445.96,0.00038778,2]
[321039308,1711809032739,-227.42,0.00038779,2]
[321039309,1711809032750,-445.96,0.00038788,2]
[321039310,1711809032761,-445.96,0.00038798,2]
[321039311,1711809032772,-445.96,0.00038808,2]
[321039312,1711809032782,-445.96,0.00038818,2]
[321039313,1711809032792,-445.96,0.00038829,2]
[321039314,1711809032802,-445.96,0.00038839,2]
[321039315,1711809032811,-445.96,0.00038849,2]
[321039316,1711809032821,-445.96,0.00038859,2]
[321039317,1711809032833,-445.96,0.00038869,2]
[321039318,1711809032843,-935.8,0.0003887,10]
[321039319,1711809032854,-1633.71,0.0003887,10]
[321039320,1711809032865,-333.06266418,0.00038879,4]
[321039321,1711809032876,-445.96,0.0003888,2]
[321039322,1711809032891,-78396.17081638,0.0003888,2]
[321039323,1711809032902,-220.19174168,0.0003888,10]
[321039324,1711809032913,-338.95944776,0.0003888,4]
[321039325,1711809032924,-397.16169333,0.0003888,2]
[321039326,1711809032935,-935.3757,0.0003888,4]
[321039327,1711809032946,-139.90356333,0.0003888,4]
[321039328,1711809033584,-15.4633772,0.0003888,4]
[321039329,1711809033594,-24725.05083544,0.0003888,2]
[321039330,1711809033606,-20740.61900548,0.0003888,2]
[321039331,1711809033615,-566.53015,0.0003888,2]
[321039332,1711809033625,-227.42,0.00038883,2]
[321039333,1711809033635,-5172.61852852,0.00038923,2]
[321039334,1711809033644,-227.42,0.00038987,2]
[321039335,1711809033654,-600.0,0.00039,40]
[321039336,1711809033663,-400.0,0.00039,3]
[321039337,1711809033673,-1316.87298293,0.0003901,2]
[321039338,1711809033683,-227.42,0.00039092,2]
[321039339,1711809033692,-227.42,0.00039196,2]
[321039340,1711809033702,-227.42,0.000393,2]
[321039341,1711809033711,-227.42,0.00039404,2]
[321039342,1711809033721,-230.00635806,0.00039479,4]
[321039343,1711809033731,-359.0,0.000395,3]
[321039344,1711809033741,-227.42,0.00039508,2]
[321039345,1711809033750,-227.42,0.00039612,2]
[321039346,1711809033760,-965.0,0.000397,3]
[321039347,1711809033770,-227.42,0.00039716,2]
[321039348,1711809033779,-999.16973637,0.00039778,2]
[321039349,1711809033789,-227.42,0.0003982,2]
[321039350,1711809033799,-520.60897951,0.00039878,4]
[321039351,1711809033808,-155.27346144,0.00039878,4]
[321039352,1711809033818,-201.21618192,0.00039878,4]
[321039353,1711809033828,-1398.39622278,0.00039878,4]
[321039354,1711809033837,-155.46726872,0.00039878,4]
[321039355,1711809033848,-1113.07752211,0.00039878,4]
[321039356,1711809033870,-1485.55943451,0.00039878,4]
[321039357,1711809033883,-1574.7093825,0.00039878,4]
[321039362,1711809037982,-1361.43,0.00039868,10]
[321039363,1711809037992,-4464.45945314,0.00039878,4]
[321039364,1711809038038,-708.62,0.00039878,4]
[321039365,1711809038096,-424.71833276,0.00039878,4]
[321039366,1711809038106,-348.90519351,0.00039878,4]
[321039367,1711809038116,-405.96126016,0.00039878,4]
[321039368,1711809038126,-155.36345187,0.00039878,4]
[321039369,1711809038136,-357.18429461,0.00039878,4]
[321039370,1711809038145,-277.76734154,0.00039878,4]
[321039371,1711809038154,-891.47792264,0.00039878,4]
[321039372,1711809038164,-30843.72922671,0.00039878,4]
[321039373,1711809038173,-182.61324904,0.00039878,4]
[321039374,1711809038183,-3620.45837447,0.00039878,4]
[321039375,1711809038192,-606.22494255,0.00039878,31]
[321039376,1711809038203,-500.0,0.00039879,4]
[321039377,1711809038212,-10953.55147,0.00039879,4]
[321039378,1711809038221,-173656.11502316,0.0003988,2]
[321039379,1711809038231,-2632.0,0.000399,2]
[321039380,1711809038240,-281.00439765,0.00039921,2]
[321039381,1711809038250,-227.42,0.00039924,2]
[321039382,1711809038260,-14480.23209643,0.0004,2]
[321039383,1711809038271,-9500.62168659,0.0004,2]
[321039384,1711809038281,-1992.63560356,0.0004,2]
[321039385,1711809038290,-207.2218864,0.0004,15]
[321039386,1711809038300,-600.0,0.0004,41]
[321039387,1711809038309,-192.28215317,0.0004,2]
[321039388,1711809038318,-51890.9210536,0.0004,2]
[321039389,1711809038331,-424.88308538,0.0004,2]
[321039390,1711809038342,-22552.34440807,0.0004,2]
[321039392,1711809040120,-508.23416015,0.0004,2]
[321039393,1711809040285,-953.445,0.0004,2]
[321039394,1711809040297,-1756.6,0.0004,2]
[321039395,1711809040357,-252.01889985,0.0004,2]
[321039403,1711809043013,-5986.61200887,0.0004,2]
[321039411,1711809046029,-41838.17753054,0.0004,2]
[321039479,1711810232184,-155.0,0.0003276,4]
[321039481,1711810232194,-651.56085048,0.00032761,4]